fUSD/lending_fUSD_20250811
["ID","MTS","AMOUNT","RATE_DAILY","PERIOD"]
[378454523,1754871047375,-666.0,0.00018999,2]
[378454525,1754871047385,-300.0,0.00018999,2]
[378454528,1754871047395,-300.0,0.00018999,2]
[378454530,1754871047404,-300.0,0.00018999,2]
[378454532,1754871047414,-300.0,0.00018999,2]
[378454534,1754871047424,-211.91039433,0.00018999,2]
[378454536,1754871047433,-233.0223381,0.00018999,2]
[378454538,1754871047444,-40713.80250732,0.00019,2]
[378454540,1754871047453,-1485793.02092193,0.00019,2]
[378454542,1754871047462,-153.0,0.00019,2]
[378454544,1754871047472,-153.0,0.00019,2]
[378454546,1754871047485,-1216.0,0.00019,2]
[378454548,1754871047494,-5000.0,0.00019,4]
[378454550,1754871047505,-3129749.68453347,0.00019,2]
[378454558,1754871047569,-5166.44623001,0.00019,2]
[378454562,1754871047607,-622.2024527,0.00019,2]
[378454565,1754871047618,-7057.96011683,0.00019,2]
[378454567,1754871047629,-596.659371,0.00019,2]
[378454671,1754871048719,-400.0,0.00018861,2]
[378454673,1754871048729,-400.0,0.00018862,2]
[378454675,1754871048738,-171.98471737,0.000189,2]
[378454677,1754871048748,-21456.0,0.00018901,2]
[378454679,1754871048758,-156075.58890784,0.00019,2]
[378454681,1754871048774,-522.81022691,0.00019,2]
[378454684,1754871048794,-457.13520606,0.00019,2]
[378454716,1754871049338,-400.0,0.00018862,2]
[378454717,1754871049348,-16507.2855814,0.00019,2]
[378454719,1754871049359,-4187.99999999,0.00019,2]
[378454721,1754871049374,-41807.76366608,0.00019,2]
[378454723,1754871049385,-11213.50215449,0.00019,2]
[378454725,1754871049397,-958.71797332,0.00019,2]
[378454727,1754871049416,-250.21745825,0.00019,2]
[378454869,1754871137530,1964.15,0.00017963,2]
[378454872,1754871208663,154.55,0.00017936,2]
[378454874,1754871276012,-509.09141111,0.00018011,2]
[378454875,1754871285380,-763.58,0.00018011,2]
[378454876,1754871292018,-400.0,0.00018011,2]
[378454877,1754871299965,-316.54513242,0.00018011,2]
[378454879,1754871352676,2617.86,0.0001792,2]
[378454883,1754871545071,254.16,0.00013699,2]
[378454884,1754871551879,411.99,0.00017935,2]
[378454885,1754871552101,411.99,0.00017945,2]
[378454886,1754871552304,411.99,0.00017954,2]
[378454887,1754871552537,411.99,0.00017964,2]
[378454888,1754871552763,411.99,0.00017973,2]
[378454889,1754871552980,411.99,0.00017983,2]
[378454890,1754871553192,411.99,0.00017992,2]
[378454891,1754871553401,411.99,0.00018001,2]
[378454893,1754871562734,-400.0,0.00018011,2]
[378454894,1754871593091,610.0,0.00017729,2]
[378454895,1754871600886,173.56,0.00017729,2]
[378454897,1754871635190,1000.0,0.00017667,2]
[378454902,1754871945999,511.0,0.00017358,2]
[378454914,1754872111098,250.0,0.00015,2]
[378454915,1754872112151,300.0,0.00017,2]
[378454926,1754872154843,407.67,0.00017651,2]
[378454928,1754872200260,154.55,0.00017608,2]
[378454941,1754872232299,-11.99,0.00018011,2]
[378454944,1754872232311,-10.78345647,0.00018011,2]
[378454945,1754872232320,-411.99,0.0001802,2]
[378454946,1754872232329,-225.99015282,0.0001803,2]
[378454947,1754872232353,-185.99984718,0.0001803,2]
[378454948,1754872232363,-411.99,0.00018039,2]
[378454949,1754872232373,-411.99,0.00018049,2]
[378454950,1754872232383,-231.28369723,0.00018049,2]
[378454951,1754872232392,-411.99,0.00018058,2]
[378454952,1754872232401,-411.99,0.00018068,2]
[378454953,1754872232410,-411.99,0.00018077,2]
[378454954,1754872232419,-411.99,0.00018087,2]
[378454955,1754872232428,-411.99,0.00018096,2]
[378454956,1754872232437,-44.0056149,0.00018105,2]
[378454957,1754872232449,-367.9843851,0.00018105,2]
[378454958,1754872232458,-411.99,0.00018115,2]
[378454959,1754872232468,-375.12437477,0.00018334,2]
[378454960,1754872232477,-353.54,0.00018592,2]
[378454961,1754872232487,-173.56,0.00018616,2]
[378454962,1754872232497,-970.0,0.0001863,2]
[378454963,1754872232506,-300.0,0.00018639,2]
[378454964,1754872232516,-300.0,0.00018639,2]
[378454965,1754872232525,-1200.0,0.00018639,2]
[378454966,1754872232534,-160.0,0.0001864,2]
[378454967,1754872232544,-346.92554585,0.0001864,2]
[378454968,1754872232554,-151.0,0.0001864,2]
[378454969,1754872232563,-600.0,0.0001864,2]
[378454970,1754872232572,-152.55361898,0.0001864,2]
[378454971,1754872232582,-1438.09495884,0.0001864,2]
[378454972,1754872232591,-150.0,0.00018755,2]
[378454973,1754872232600,-1964.7605,0.00018761,2]
[378454974,1754872232609,-230.5588,0.00018761,2]
[378454975,1754872232619,-275.2062,0.00018761,2]
[378454976,1754872232628,-6918.1406,0.00018761,2]
[378454977,1754872232637,-615.5413,0.00018762,2]
[378454978,1754872232647,-23300.0,0.00018817,2]
[378454979,1754872232656,-7884.35385636,0.0001882,2]
[378454980,1754872232665,-4083.13975747,0.00018831,2]
[378454981,1754872232687,-7137.02038548,0.00018831,2]
[378454982,1754872232696,-305.34,0.00018839,2]
[378454983,1754872232705,-4463.39128552,0.0001886,2]
[378454984,1754872232717,-3315.55741577,0.0001886,2]
[378454985,1754872232727,-400.0,0.0001886,2]
[378454986,1754872232737,-880.73774273,0.0001886,2]
[378454987,1754872232750,-379.09225727,0.0001886,2]
[378454988,1754872232760,-424.41774273,0.0001886,2]
[378454989,1754872233336,-618.50225727,0.0001886,2]
[378454990,1754872233345,-47.49774273,0.0001886,2]
[378454991,1754872233357,-545.73225727,0.0001886,2]
[378454992,1754872233366,-579.57,0.0001886,2]
[378454993,1754872233376,-1012.6,0.0001886,2]
[378454994,1754872233386,-836.24,0.0001886,2]
[378454995,1754872233395,-260.54763579,0.0001886,2]
[378454996,1754872233411,-603.84235597,0.0001886,2]
[378454997,1754872233421,-467.64000824,0.0001886,2]
[378454998,1754872233431,-2107.0,0.0001886,2]
[378454999,1754872233441,-402.01431374,0.0001886,2]
[378455000,1754872233450,-243.32820685,0.0001886,2]
[378455001,1754872233459,-1161.59490744,0.0001886,2]
[378455002,1754872233481,-429.97509256,0.0001886,2]
[378455003,1754872233490,-1910.77464385,0.0001886,2]
[378455004,1754872233505,-245.04535615,0.0001886,2]
[378455005,1754872233514,-400.0,0.0001886,2]
[378455006,1754872233524,-1738.86,0.0001886,2]
[378455007,1754872233533,-400.0,0.0001886,2]
[378455008,1754872233543,-400.0,0.0001886,2]
[378455009,1754872233553,-825.35,0.0001886,2]
[378455010,1754872233562,-400.0,0.0001886,2]
[378455011,1754872233572,-400.0,0.0001886,2]
[378455012,1754872233581,-825.33,0.0001886,2]
[378455013,1754872233590,-460.99,0.0001886,2]
[378455014,1754872233599,-400.0,0.0001886,2]
[378455015,1754872233609,-400.0,0.0001886,2]
[378455016,1754872233619,-810.0,0.00018861,2]
[378455017,1754872233628,-3366.0,0.00018861,2]
[378455018,1754872233637,-957.0,0.00018861,2]
[378455019,1754872233647,-400.0,0.00018861,2]
[378455020,1754872233657,-407.50562857,0.00018861,2]
[378455021,1754872233666,-400.0,0.00018861,2]
[378455022,1754872233675,-400.0,0.00018861,2]
[378455023,1754872233684,-108.56784864,0.00018861,2]
[378455044,1754872238248,-400.0,0.0001886,2]
[378455045,1754872238257,-945.63,0.0001886,2]
[378455046,1754872238267,-291.43215136,0.00018861,2]
[378455047,1754872238277,-1078.2,0.00018861,2]
[378455048,1754872238286,-400.0,0.00018861,2]
[378455049,1754872238296,-1078.67,0.00018861,2]
[378455050,1754872238306,-400.0,0.00018861,2]
[378455051,1754872238316,-400.0,0.00018861,2]
[378455052,1754872238326,-248.81071461,0.00018861,2]
[378455053,1754872238345,-151.18928539,0.00018861,2]
[378455054,1754872238355,-400.0,0.00018861,2]
[378455055,1754872238365,-1142.82,0.00018861,2]
[378455056,1754872238375,-400.0,0.00018861,2]
[378455057,1754872238384,-400.0,0.00018861,2]
[378455058,1754872238394,-400.0,0.00018861,2]
[378455059,1754872238403,-400.0,0.00018861,2]
[378455060,1754872238412,-400.0,0.00018861,2]
[378455061,1754872238421,-534.08,0.00018861,2]
[378455062,1754872238431,-400.0,0.00018861,2]
[378455063,1754872238440,-530.35,0.00018861,2]
[378455064,1754872238449,-400.0,0.00018861,2]
[378455065,1754872238459,-892.37,0.00018861,2]
[378455066,1754872238468,-695.28,0.00018861,2]
[378455067,1754872238477,-400.0,0.00018861,2]
[378455068,1754872238486,-916.14,0.00018861,2]
[378455069,1754872238496,-477.97,0.00018861,2]
[378455070,1754872238506,-400.0,0.00018861,2]
[378455071,1754872238516,-548.56,0.00018861,2]
[378455072,1754872238525,-533.24,0.00018861,2]
[378455073,1754872238535,-1066.57,0.00018861,2]
[378455074,1754872238544,-510.87,0.00018861,2]
[378455075,1754872238554,-400.0,0.00018861,2]
[378455076,1754872238564,-739.98,0.00018861,2]
[378455077,1754872238573,-2080.9,0.00018861,2]
[378455078,1754872238583,-421.67,0.00018861,2]
[378455079,1754872238592,-400.0,0.00018861,2]
[378455080,1754872238601,-400.0,0.00018861,2]
[378455081,1754872238611,-400.0,0.00018861,2]
[378455082,1754872238620,-539.07,0.00018861,2]
[378455083,1754872238631,-400.0,0.00018861,2]
[378455084,1754872238641,-1155.83,0.00018861,2]
[378455085,1754872238650,-400.0,0.00018861,2]
[378455086,1754872238659,-688.14,0.00018861,2]
[378455087,1754872238669,-926.97,0.00018861,2]
[378455088,1754872238679,-400.0,0.00018861,2]
[378455090,1754872238688,-400.0,0.00018861,2]
[378455092,1754872238697,-776.77,0.00018861,2]
[378455095,1754872238707,-479.62,0.00018861,2]
[378455098,1754872238716,-988.53,0.00018861,2]
[378455101,1754872238726,-862.94,0.00018861,2]
[378455103,1754872238735,-400.0,0.00018861,2]
[378455105,1754872238745,-400.0,0.00018861,2]
[378455107,1754872238757,-667.97,0.00018861,2]
[378455109,1754872238767,-400.0,0.00018861,2]
[378455111,1754872238776,-424.79,0.00018861,2]
[378455113,1754872238786,-1129.68,0.00018861,2]
[378455115,1754872238795,-446.79,0.00018861,2]
[378455117,1754872238806,-440.98,0.00018861,2]
[378455119,1754872238816,-625.65,0.00018861,2]
[378455121,1754872238825,-698.2,0.00018861,2]
[378455123,1754872238835,-400.0,0.00018861,2]
[378455125,1754872238845,-400.0,0.00018861,2]
[378455127,1754872238854,-615.45,0.00018861,2]
[378455129,1754872238864,-400.0,0.00018861,2]
[378455131,1754872238874,-400.0,0.00018861,2]
[378455133,1754872238883,-969.0,0.00018861,2]
[378455134,1754872238893,-753.94,0.00018861,2]
[378455136,1754872238903,-1006.92,0.00018861,2]
[378455139,1754872238912,-485.03,0.00018861,2]
[378455141,1754872238922,-400.0,0.00018861,2]
[378455143,1754872238931,-540.14,0.00018861,2]
[378455145,1754872238941,-400.0,0.00018861,2]
[378455147,1754872238950,-400.0,0.00018861,2]
[378455149,1754872238959,-400.0,0.00018861,2]
[378455151,1754872238969,-540.4,0.00018861,2]
[378455153,1754872238978,-400.0,0.00018861,2]
[378455155,1754872238988,-480.47,0.00018861,2]
[378455157,1754872238997,-1261.7,0.00018861,2]
[378455159,1754872239006,-400.0,0.00018861,2]
[378455161,1754872239015,-697.86,0.00018861,2]
[378455163,1754872239025,-1463.97,0.00018861,2]
[378455165,1754872239034,-156.407199,0.00018861,2]
[378455167,1754872239043,-400.0,0.00018861,2]
[378455169,1754872239054,-819.8,0.00018861,2]
[378455171,1754872239063,-337.212397,0.00018861,2]
[378455173,1754872239072,-581.332145,0.00018861,2]
[378455175,1754872239082,-400.0,0.00018861,2]
[378455177,1754872239091,-578.88,0.00018861,2]
[378455179,1754872239100,-2120.3,0.00018861,2]
[378455181,1754872239110,-400.0,0.00018861,2]
[378455183,1754872239119,-400.0,0.00018861,2]
[378455185,1754872239128,-410.5,0.00018861,2]
[378455187,1754872239137,-400.0,0.00018861,2]
[378455189,1754872239146,-1024.94,0.00018861,2]
[378455191,1754872239155,-1102.79,0.00018861,2]
[378455193,1754872239165,-1546.57,0.00018861,2]
[378455195,1754872239174,-889.46,0.00018861,2]
[378455197,1754872239183,-559.723657,0.00018861,2]
[378455199,1754872239192,-891.7,0.00018861,2]
[378455201,1754872239201,-970.49,0.00018861,2]
[378455203,1754872239210,-849.31,0.00018861,2]
[378455205,1754872239220,-571.69,0.00018861,2]
[378455207,1754872239229,-150.844158,0.00018861,2]
[378455209,1754872239238,-763.06,0.00018861,2]
[378455211,1754872239247,-1147.64,0.00018861,2]
[378455213,1754872239256,-400.0,0.00018861,2]
[378455215,1754872239266,-657.83,0.00018861,2]
[378455217,1754872239275,-779.04,0.00018861,2]
[378455219,1754872239284,-400.0,0.00018861,2]
[378455221,1754872239293,-400.0,0.00018861,2]
[378455223,1754872239303,-519.21,0.00018861,2]
[378455225,1754872239313,-963.32,0.00018861,2]
[378455227,1754872239322,-400.0,0.00018861,2]
[378455229,1754872239331,-1172.11,0.00018861,2]
[378455231,1754872239341,-566.55,0.00018861,2]
[378455233,1754872239350,-400.0,0.00018861,2]
[378455235,1754872239358,-2568.53,0.00018861,2]
[378455237,1754872239368,-1466.28,0.00018861,2]
[378455238,1754872239377,-623.9,0.00018861,2]
[378455240,1754872239386,-884.69,0.00018861,2]
[378455242,1754872239395,-1371.25,0.00018861,2]
[378455244,1754872239404,-400.0,0.00018861,2]
[378455246,1754872239414,-228.33194581,0.00018861,2]
[378455248,1754872239423,-586.87,0.00018861,2]
[378455250,1754872239432,-1408.29,0.00018861,2]
[378455252,1754872239441,-702.35,0.00018861,2]
[378455254,1754872239451,-1404.34,0.00018861,2]
[378455256,1754872239460,-472.52,0.00018861,2]
[378455258,1754872239469,-1316.25,0.00018861,2]
[378455260,1754872239478,-2449.32,0.00018861,2]
[378455262,1754872239487,-969.24,0.00018861,2]
[378455264,1754872239497,-772.17,0.00018861,2]
[378455266,1754872239506,-987.67,0.00018861,2]
[378455268,1754872239515,-914.89,0.00018861,2]
[378455270,1754872239524,-768.45,0.00018861,2]
[378455272,1754872239533,-1177.07,0.00018861,2]
[378455274,1754872239542,-540.61,0.00018861,2]
[378455276,1754872239552,-1762.7,0.00018861,2]
[378455278,1754872239561,-1579.46,0.00018861,2]
[378455280,1754872239571,-1912.2,0.00018861,2]
[378455282,1754872239580,-1331.86,0.00018861,2]
[378455284,1754872239589,-1559.67,0.00018861,2]
[378455286,1754872239598,-547.84,0.00018861,2]
[378455288,1754872239607,-400.0,0.00018861,2]
[378455290,1754872239616,-1160.64,0.00018861,2]
[378455292,1754872239625,-476.86,0.00018861,2]
[378455294,1754872239635,-1115.45,0.00018861,2]
[378455296,1754872239644,-556.5,0.00018861,2]
[378455298,1754872239654,-1142.63,0.00018861,2]
[378455300,1754872239663,-400.0,0.00018861,2]
[378455302,1754872239673,-1467.57,0.00018861,2]
[378455304,1754872239682,-403.31,0.00018861,2]
[378455306,1754872239692,-1659.78,0.00018861,2]
[378455308,1754872239702,-1738.91,0.00018861,2]
[378455310,1754872239711,-784.8,0.00018861,2]
[378455313,1754872239721,-400.0,0.00018861,2]
[378455315,1754872239731,-400.0,0.00018861,2]
[378455317,1754872239741,-1200.37,0.00018861,2]
[378455319,1754872239752,-1722.88,0.00018861,2]
[378455321,1754872239763,-708.87,0.00018861,2]
[378455323,1754872239773,-587.01,0.00018861,2]
[378455325,1754872239782,-1005.75,0.00018861,2]
[378455327,1754872239792,-1182.01,0.00018861,2]
[378455328,1754872239803,-715.33,0.00018861,2]
[378455330,1754872239813,-1283.56,0.00018861,2]
[378455333,1754872239823,-400.0,0.00018861,2]
[378455335,1754872239833,-542.08,0.00018861,2]
[378455337,1754872239842,-583.92,0.00018861,2]
[378455339,1754872239851,-400.0,0.00018861,2]
[378455341,1754872239860,-637.19,0.00018861,2]
[378455343,1754872239870,-503.01,0.00018861,2]
[378455344,1754872239879,-400.0,0.00018861,2]
[378455346,1754872239888,-1371.48,0.00018861,2]
[378455348,1754872239898,-2651.02,0.00018861,2]
[378455350,1754872239908,-701.19,0.00018861,2]
[378455352,1754872239918,-1702.66,0.00018861,2]
[378455354,1754872239927,-466.47,0.00018861,2]
[378455356,1754872239937,-1015.78,0.00018861,2]
[378455358,1754872239946,-400.0,0.00018861,2]
[378455361,1754872239956,-4104.89,0.00018861,2]
[378455363,1754872239965,-1286.09,0.00018861,2]
[378455364,1754872239976,-640.45,0.00018861,2]
[378455366,1754872239986,-2899.2,0.00018861,2]
[378455368,1754872239995,-926.71,0.00018861,2]
[378455370,1754872240004,-400.0,0.00018861,2]
[378455372,1754872240013,-1608.83,0.00018861,2]
[378455374,1754872240023,-1180.41,0.00018861,2]
[378455376,1754872240032,-1102.25,0.00018861,2]
[378455378,1754872240042,-524.71,0.00018861,2]
[378455380,1754872240053,-1523.48,0.00018861,2]
[378455382,1754872240063,-400.0,0.00018861,2]
[378455384,1754872240072,-2475.18,0.00018861,2]
[378455386,1754872240081,-640.31,0.00018861,2]
[378455389,1754872240090,-1178.36,0.00018861,2]
[378455392,1754872240100,-400.0,0.00018861,2]
[378455395,1754872240109,-1843.92,0.00018861,2]
[378455397,1754872240119,-1119.89,0.00018861,2]
[378455399,1754872240128,-1471.5,0.00018861,2]
[378455401,1754872240137,-1104.74,0.00018861,2]
[378455403,1754872240147,-1055.7,0.00018861,2]
[378455405,1754872240155,-3167.54,0.00018861,2]
[378455407,1754872240165,-400.0,0.00018861,2]
[378455409,1754872240174,-400.0,0.00018861,2]
[378455411,1754872240183,-1388.34,0.00018861,2]
[378455413,1754872240192,-400.0,0.00018861,2]
[378455415,1754872240202,-400.0,0.00018861,2]
[378455417,1754872240211,-1285.86,0.00018861,2]
[378455419,1754872240220,-1099.21,0.00018861,2]
[378455421,1754872240229,-1340.54,0.00018861,2]
[378455423,1754872240239,-935.64,0.00018861,2]
[378455425,1754872240248,-1092.73,0.00018861,2]
[378455427,1754872240257,-498.63,0.00018861,2]
[378455429,1754872240267,-1375.06,0.00018861,2]
[378455431,1754872240275,-637.67,0.00018861,2]
[378455433,1754872240285,-923.08,0.00018861,2]
[378455435,1754872240294,-710.87,0.00018861,2]
[378455437,1754872240304,-400.0,0.00018861,2]
[378455439,1754872240313,-838.43,0.00018861,2]
[378455441,1754872240323,-879.03,0.00018861,2]
[378455443,1754872240332,-4068.89,0.00018861,2]
[378455445,1754872240341,-1120.8,0.00018861,2]
[378455447,1754872240351,-868.2,0.00018861,2]
[378455449,1754872240360,-589.57,0.00018861,2]
[378455451,1754872240369,-400.0,0.00018861,2]
[378455453,1754872240378,-1038.94,0.00018861,2]
[378455455,1754872240388,-3722.01,0.00018861,2]
[378455457,1754872240397,-826.39,0.00018861,2]
[378455459,1754872240407,-1148.92,0.00018861,2]
[378455461,1754872240416,-1004.55,0.00018861,2]
[378455463,1754872240426,-850.11,0.00018861,2]
[378455465,1754872240435,-2885.08,0.00018861,2]
[378455467,1754872240445,-1250.59,0.00018861,2]
[378455469,1754872240454,-400.0,0.00018861,2]
[378455471,1754872240463,-13113.24,0.00018861,2]
[378455473,1754872240475,-400.0,0.00018861,2]
[378455475,1754872240485,-542.24,0.00018861,2]
[378455477,1754872240495,-3751.38,0.00018861,2]
[378455480,1754872240504,-1590.4,0.00018861,2]
[378455482,1754872240513,-886.76,0.00018861,2]
[378455484,1754872240523,-400.0,0.00018861,2]
[378455486,1754872240532,-400.0,0.00018861,2]
[378455488,1754872240544,-2475.53,0.00018861,2]
[378455490,1754872240554,-400.0,0.00018861,2]
[378455492,1754872240563,-400.0,0.00018861,2]
[378455494,1754872240572,-455.18140444,0.00018861,2]
[378455496,1754872240581,-400.0,0.00018861,2]
[378455498,1754872240589,-1517.57,0.00018861,2]
[378455500,1754872240599,-400.0,0.00018861,2]
[378455502,1754872240608,-871.67,0.00018861,2]
[378455504,1754872240617,-504.53,0.00018861,2]
[378455506,1754872240626,-400.0,0.00018861,2]
[378455508,1754872240636,-1956.72,0.00018861,2]
[378455510,1754872240645,-400.0,0.00018861,2]
[378455512,1754872240654,-842.28,0.00018861,2]
[378455514,1754872240663,-1124.28,0.00018861,2]
[378455516,1754872240673,-698.43,0.00018861,2]
[378455518,1754872240683,-915.92,0.00018861,2]
[378455520,1754872240691,-610.68,0.00018861,2]
[378455522,1754872240702,-1665.45,0.00018861,2]
[378455524,1754872240711,-436.94,0.00018861,2]
[378455526,1754872240721,-400.0,0.00018861,2]
[378455528,1754872240731,-400.0,0.00018861,2]
[378455530,1754872240740,-925.64,0.00018861,2]
[378455532,1754872240753,-520.87,0.00018861,2]
[378455534,1754872240766,-840.31,0.00018861,2]
[378455536,1754872240776,-800.9,0.00018861,2]
[378455538,1754872240785,-400.0,0.00018861,2]
[378455540,1754872240795,-487.31,0.00018861,2]
[378455541,1754872240806,-1586.94,0.00018861,2]
[378455543,1754872240816,-1136.58,0.00018861,2]
[378455545,1754872240825,-1903.72,0.00018861,2]
[378455547,1754872240835,-444.96,0.00018861,2]
[378455549,1754872240845,-1400.3,0.00018861,2]
[378455552,1754872240855,-497.77,0.00018861,2]
[378455553,1754872240864,-635.58,0.00018861,2]
[378455555,1754872240873,-711.62,0.00018861,2]
[378455557,1754872240883,-460.92820876,0.00018862,2]
[378455559,1754872240892,-442.4,0.00018862,2]
[378455561,1754872240902,-400.0,0.00018862,2]
[378455563,1754872240911,-400.0,0.00018862,2]
[378455565,1754872240920,-657.83,0.00018862,2]
[378455567,1754872240930,-400.0,0.00018862,2]
[378455569,1754872240940,-400.0,0.00018862,2]
[378455571,1754872240949,-400.0,0.00018862,2]
[378455573,1754872240958,-403.9,0.00018862,2]
[378455575,1754872240967,-400.0,0.00018862,2]
[378455577,1754872240977,-400.0,0.00018862,2]
[378455579,1754872240986,-400.0,0.00018862,2]
[378455580,1754872240995,-400.0,0.00018862,2]
[378455581,1754872241005,-300.0,0.00018862,2]
[378455582,1754872241015,-400.0,0.00018862,2]
[378455583,1754872241025,-400.0,0.00018862,2]
[378455584,1754872241035,-400.0,0.00018862,2]
[378455585,1754872241044,-574.03,0.00018862,2]
[378455586,1754872241055,-400.0,0.00018862,2]
[378455587,1754872241065,-552.92,0.00018862,2]
[378455588,1754872241075,-448.01,0.00018862,2]
[378455589,1754872241084,-400.0,0.00018862,2]
[378455590,1754872241095,-400.0,0.00018862,2]
[378455591,1754872241104,-400.0,0.00018862,2]
[378455593,1754872241113,-400.0,0.00018862,2]
[378455595,1754872241123,-445.11,0.00018862,2]
[378455597,1754872241133,-400.0,0.00018862,2]
[378455599,1754872241143,-514.77,0.00018862,2]
[378455601,1754872241152,-441.98,0.00018862,2]
[378455603,1754872241161,-545.13,0.00018862,2]
[378455605,1754872241171,-400.0,0.00018862,2]
[378455607,1754872241181,-400.0,0.00018862,2]
[378455608,1754872241191,-400.0,0.00018862,2]
[378455611,1754872241200,-397.93311054,0.00018862,2]
[378455613,1754872241210,-400.0,0.00018862,2]
[378455615,1754872241219,-400.0,0.00018862,2]
[378455617,1754872241229,-700.14,0.00018862,2]
[378455619,1754872241239,-445.43,0.00018862,2]
[378455621,1754872241248,-400.0,0.00018862,2]
[378455643,1754872241263,-500.0,0.00018862,2]
[378455649,1754872241524,-400.0,0.00018862,2]
[378455651,1754872241534,-400.0,0.00018862,2]
[378455653,1754872241543,-724.01,0.00018862,2]
[378455655,1754872241554,-400.0,0.00018862,2]
[378455657,1754872241564,-400.0,0.00018862,2]
[378455659,1754872241574,-400.0,0.00018862,2]
[378455661,1754872241584,-400.0,0.00018862,2]
[378455663,1754872241594,-400.0,0.00018862,2]
[378455665,1754872241604,-451.12,0.00018862,2]
[378455667,1754872241613,-400.0,0.00018862,2]
[378455669,1754872241623,-400.0,0.00018862,2]
[378455671,1754872241633,-400.0,0.00018862,2]
[378455673,1754872241642,-534.74,0.00018862,2]
[378455675,1754872241651,-400.0,0.00018862,2]
[378455677,1754872241663,-820.41,0.00018862,2]
[378455679,1754872241672,-400.0,0.00018862,2]
[378455681,1754872241681,-400.0,0.00018862,2]
[378455683,1754872241691,-400.0,0.00018862,2]
[378455685,1754872241707,-400.0,0.00018862,2]
[378455687,1754872241722,-400.0,0.00018862,2]
[378455689,1754872241731,-400.0,0.00018862,2]
[378455691,1754872241741,-400.0,0.00018862,2]
[378455693,1754872241752,-557.2,0.00018862,2]
[378455695,1754872241762,-400.0,0.00018862,2]
[378455697,1754872241771,-408.30637338,0.00018862,2]
[378455699,1754872241780,-400.0,0.00018862,2]
[378455701,1754872241789,-400.0,0.00018862,2]
[378455703,1754872241799,-400.0,0.00018862,2]
[378455705,1754872241811,-409.76,0.00018862,2]
[378455707,1754872241820,-400.0,0.00018862,2]
[378455709,1754872241831,-400.0,0.00018862,2]
[378455711,1754872241842,-400.0,0.00018862,2]
[378455713,1754872241852,-400.0,0.00018862,2]
[378455715,1754872241861,-568.79,0.00018862,2]
[378455717,1754872241870,-400.0,0.00018862,2]
[378455719,1754872241879,-1601.81,0.00018862,2]
[378455721,1754872241889,-400.0,0.00018862,2]
[378455723,1754872241898,-871.47,0.00018862,2]
[378455725,1754872241908,-1200.97,0.00018862,2]
[378455727,1754872241919,-400.0,0.00018862,2]
[378455729,1754872241928,-958.22,0.00018862,2]
[378455731,1754872241938,-499.88,0.00018862,2]
[378455733,1754872241948,-400.0,0.00018862,2]
[378455736,1754872241958,-400.0,0.00018862,2]
[378455738,1754872241968,-460.0,0.00018862,2]
[378455740,1754872241978,-604.37,0.00018862,2]